fUST/lending_fUST_20240818
["ID","MTS","AMOUNT","RATE_DAILY","PERIOD"]
[335182764,1723943445184,-500.0,0.00021917,2]
[335182765,1723943445193,-8336.52,0.00021917,2]
[335182766,1723943445202,-500.0,0.00021917,2]
[335182767,1723943445212,-677.96,0.00021917,2]
[335182768,1723943445221,-2392.06,0.00021917,2]
[335182769,1723943445230,-500.0,0.00021917,2]
[335182770,1723943445239,-500.0,0.00021917,2]
[335182771,1723943445249,-500.0,0.00021917,2]
[335182772,1723943445258,-912.44,0.00021917,2]
[335182773,1723943445267,-500.0,0.00021917,2]
[335182774,1723943445276,-500.0,0.00021917,2]
[335182775,1723943445285,-678.97,0.00021917,2]
[335182776,1723943445295,-983.53,0.00021917,2]
[335182777,1723943445303,-500.0,0.00021917,2]
[335182778,1723943445312,-500.0,0.00021917,2]
[335182779,1723943445322,-611.55,0.00021917,2]
[335182780,1723943445331,-1244.41,0.00021917,2]
[335182781,1723943445340,-500.0,0.00021917,2]
[335182782,1723943445350,-500.0,0.00021917,2]
[335182783,1723943445360,-579.16810756,0.00021917,2]
[335182784,1723943445369,-500.0,0.00021917,2]
[335182785,1723943445379,-500.0,0.00021917,2]
[335182786,1723943445388,-500.0,0.00021917,2]
[335182787,1723943445397,-1348.82,0.00021917,2]
[335182788,1723943445406,-1057.53,0.00021917,2]
[335182789,1723943445416,-218.84138075,0.00021917,2]
[335182790,1723943445425,-613.95,0.00021917,2]
[335182791,1723943445435,-500.0,0.00021917,2]
[335182792,1723943445445,-500.0,0.00021917,2]
[335182793,1723943445454,-500.0,0.00021917,2]
[335182794,1723943445464,-901.03,0.00021917,2]
[335182795,1723943445475,-389.06515549,0.00021917,2]
[335182810,1723943535625,209.700452,0.00014247,2]
[335182867,1723944041118,174.881751,0.00014247,2]
[335182890,1723944391760,1184.43130024,0.00014519,2]
[335182893,1723944425106,-194.19211654,0.00017169,2]
[335182894,1723944425127,-304.79741951,0.00017269,2]
[335182895,1723944425243,-563.2025137,0.00017269,2]
[335182896,1723944435105,-217.97419016,0.00018883,2]
[335182897,1723944435127,-253.50656338,0.00018983,2]
[335182898,1723944435149,-162.646576,0.00020004,2]
[335182899,1723944435170,-282.96048638,0.000201,2]
[335182908,1723944437099,-1822.80730362,0.000201,2]
[335182924,1723944454137,-3628.0891868,0.000201,2]
[335182925,1723944454162,-401.773948,0.00020229,2]
[335182926,1723944454187,-157.202975,0.00020447,2]
[335182927,1723944454213,-157.202975,0.00020503,2]
[335182928,1723944454239,-157.202975,0.00020559,2]
[335182929,1723944454264,-157.202975,0.00020615,2]
[335182930,1723944454303,-157.202975,0.00020671,2]
[335182931,1723944454330,-262.62300514,0.00020706,2]
[335182933,1723944501695,2128.39048594,0.000125,2]
[335182934,1723944523947,1126.2,0.00016,30]
[335182935,1723944552232,-788.49569084,0.00017598,2]
[335182936,1723944552256,-44.41927038,0.000176,2]
[335182937,1723944554112,-166.57466688,0.000176,2]
[335182938,1723944554134,-83.27750575,0.00017999,2]
[335182943,1723944573094,-216.72249425,0.00017999,2]
[335182944,1723944573116,-28.27750575,0.00018,30]
[335182945,1723944575275,229.762422,0.00014247,2]
[335182994,1723944632481,-154.92761544,0.00017269,2]
[335182995,1723944632491,-159.17378147,0.00017269,2]
[335182996,1723944632503,-300.0,0.00017999,2]
[335182997,1723944632513,-7916.69046932,0.00018,30]
[335182998,1723944632522,-155.0,0.00018,30]
[335182999,1723944632532,-420.0,0.00019799,2]
[335183000,1723944632542,-234.162883,0.00020363,2]
[335183001,1723944632552,-411.29,0.00020696,3]
[335183002,1723944632562,-205.64,0.00020696,3]
[335183003,1723944632571,-616.95,0.00020696,3]
[335183004,1723944632581,-500.0,0.00020703,2]
[335183005,1723944632591,-500.0,0.00020703,2]
[335183006,1723944632601,-500.0,0.00020703,2]
[335183007,1723944632610,-500.0,0.00020703,2]
[335183008,1723944632620,-158.79843417,0.00020703,2]
[335183009,1723944632629,-500.0,0.00020703,2]
[335183010,1723944632640,-11675.2154376,0.00020704,2]
[335183025,1723944638231,-254.63533274,0.00020703,2]
[335183027,1723944638244,-202.0058627,0.00020703,2]
[335183029,1723944638254,-530.94883921,0.00020703,2]
[335183030,1723944638263,-2205.9890099,0.00020704,2]
[335183054,1723944640633,-154.82953939,0.0002,2]
[335183055,1723944640643,-49494.13774885,0.00020704,2]
[335183056,1723944640653,-18413.28468176,0.00020706,2]
[335183358,1723944801604,321.42198197,0.00014519,2]
[335183359,1723944827192,4834.91205885,0.00014519,2]
[335183360,1723944827312,3542.56730241,0.00014519,2]
[335183361,1723944851534,21064.90896241,0.00016,2]
[335183363,1723944903881,-930.0,0.0001942,2]
[335183378,1723945041090,496.7589111,0.00014519,2]
[335183380,1723945047137,173.635593,0.00014247,2]
[335183397,1723945164539,470.24,0.00016,2]
[335183425,1723945625121,-237.0406775,0.00018689,2]
[335183426,1723945625143,-3359.35898392,0.00018978,2]
[335183427,1723945627207,218.2743,0.00014247,2]
[335183428,1723945633147,-635.24995905,0.00018978,2]
[335183429,1723945635087,-502.41276354,0.00018978,2]
[335183430,1723945635108,-191.9731999,0.00019078,2]
[335183431,1723945635129,-166.137291,0.00019178,2]
[335183432,1723945635150,-951.84333055,0.00019223,2]
[335183435,1723945636106,-919.20502381,0.00019223,2]
[335183440,1723945637131,-198.95164564,0.00019223,2]
[335183441,1723945637155,-114.95986508,0.00019228,2]
[335183451,1723945653113,-185.04013492,0.00019228,2]
[335183452,1723945653137,-260.11060885,0.00019229,2]
[335183718,1723945838403,-806.37061774,0.00019054,2]
[335183719,1723945838549,-9666.75608647,0.00019054,2]
[335183720,1723945838568,-720.84043094,0.00019054,2]
[335183855,1723945840685,-7369.11996315,0.00019054,2]
[335183856,1723945840695,-300.0,0.00019228,2]
[335183857,1723945840704,-250.0,0.00019356,2]
[335183858,1723945840714,-1275.0573743,0.00019394,2]
[335183859,1723945840723,-250.0,0.00019409,2]
[335183860,1723945840734,-250.0,0.00019462,2]
[335183861,1723945840745,-250.0,0.00019516,2]
[335183862,1723945840755,-250.0,0.00019569,2]
[335183863,1723945840765,-250.0,0.00019622,2]
[335183864,1723945840775,-250.0,0.00019675,2]
[335183865,1723945840785,-250.0,0.00019728,2]
[335183866,1723945840796,-250.0,0.00019781,2]
[335183867,1723945840807,-250.0,0.00019834,2]
[335183868,1723945840820,-250.0,0.00019887,2]
[335183869,1723945840832,-250.0,0.0001994,2]
[335183870,1723945840843,-206.8455943,0.00019973,2]
[335183871,1723945840856,-250.0,0.00019993,2]
[335183872,1723945840867,-250.0,0.00020046,2]
[335183873,1723945840877,-250.0,0.000201,2]
[335183874,1723945840888,-324.4948299,0.000201,2]
[335183889,1723945841107,-207.4743021,0.0002011,2]
[335183892,1723945841118,-207.4743021,0.0002011,2]
[335183893,1723945841131,-4492.70623303,0.00020141,2]
[335183894,1723945841142,-250.0,0.00020153,2]
[335183896,1723945841154,-308.1001174,0.000202,2]
[335183898,1723945841164,-250.0,0.00020206,2]
[335183900,1723945841175,-2731.75551735,0.00020212,2]
[335183901,1723945841185,-250.0,0.00020259,2]
[335183902,1723945841195,-250.0,0.00020312,2]
[335183903,1723945841208,-200.2660357,0.00020356,2]
[335183904,1723945841220,-250.0,0.00020365,2]
[335183905,1723945841230,-212.2347381,0.00020378,2]
[335183906,1723945841240,-207.4743021,0.00020378,2]
[335183907,1723945841252,-4492.70623304,0.00020526,2]
[335183908,1723945841262,-415.98814118,0.00020606,2]
[335183909,1723945841273,-181.38132891,0.00020695,2]
[335183910,1723945841283,-500.0,0.00020695,2]
[335183911,1723945841293,-349.64200152,0.00020695,2]
[335183912,1723945841302,-500.0,0.00020695,2]
[335183913,1723945841312,-500.0,0.00020695,2]
[335183914,1723945841321,-500.0,0.00020695,2]
[335183915,1723945841330,-500.0,0.00020695,2]
[335183916,1723945841341,-621.69,0.00020696,3]
[335183917,1723945841350,-38825.4451855,0.00020696,2]
[335183918,1723945841361,-166.9914272,0.00020704,2]
[335183919,1723945841371,-126465.03980528,0.00020706,2]
[335183920,1723945841383,-10508.70613937,0.00020706,2]
[335183921,1723945841394,-218.2743,0.00020707,2]
[335183922,1723945841405,-160.0,0.00020735,3]
[335183923,1723945841416,-153.0,0.00020822,2]
[335183924,1723945841426,-415.98814114,0.00020909,2]
[335183925,1723945841437,-258.43524236,0.00021,2]
[335183926,1723945841448,-5709.11677535,0.00021,2]
[335183927,1723945841458,-10143.35786705,0.00021,2]
[335183928,1723945841467,-232.89970429,0.00021,2]
[335183929,1723945841477,-153.0,0.00021096,2]
[335183930,1723945841487,-153.0,0.00021096,2]
[335183931,1723945841497,-153.0,0.00021096,2]
[335183932,1723945841506,-155.1265999,0.00021096,2]
[335183933,1723945841515,-420.0,0.00021151,2]
[335183934,1723945841524,-504.17158941,0.000212,2]
[335183935,1723945841534,-150.112233,0.000212,3]
[335183936,1723945841544,-415.98814114,0.00021212,2]
[335183937,1723945841553,-160.0,0.00021247,4]
[335183938,1723945841562,-150.112233,0.000213,4]
[335183939,1723945841572,-150.112233,0.000213,3]
[335183940,1723945841582,-489.90880682,0.00021341,2]
[335183941,1723945841591,-150.112233,0.000214,2]
[335183942,1723945841601,-150.112233,0.000214,4]
[335183943,1723945841611,-260.8194266,0.00021479,2]
[335183944,1723945841622,-415.98814114,0.00021514,2]
[335183945,1723945841632,-150.112233,0.000216,4]
[335183946,1723945841642,-150.112233,0.000216,3]
[335183947,1723945841652,-150.112233,0.000217,5]
[335183948,1723945841663,-150.112233,0.000217,5]
[335183949,1723945841675,-160.0,0.00021759,5]
[335183950,1723945841685,-415.98814114,0.00021817,2]
[335183951,1723945841695,-12941.8150618,0.00021877,3]
[335183952,1723945841706,-10727.32309839,0.00021887,3]
[335184157,1723946091063,173.635593,0.00014247,2]
[335184158,1723946207260,199.29700215,0.00014247,2]
[335184159,1723946207940,161.35308376,0.00014519,2]
[335184160,1723946214605,171.49110181,0.00014247,2]
[335184168,1723946241086,228.07130631,0.00014519,2]
[335184182,1723946261104,3099.76684405,0.00014247,2]
[335184183,1723946261133,16398.66994255,0.00014247,2]
[335184184,1723946278591,19498.4367866,0.00014247,2]
[335184190,1723946395598,19498.4367866,0.00014247,2]
[335184192,1723946416695,445.349762,0.000211,120]
[335184210,1723946613317,2522.99959422,0.00015001,2]
[335184211,1723946619014,207.360586,0.00014247,2]
[335184213,1723946639644,19498.4367866,0.00015001,2]
[335184214,1723946733622,19498.4367866,0.00015001,2]
[335184217,1723946803121,-223.84545414,0.0001816,2]
[335184220,1723946827116,-1183.99129532,0.00016438,2]
[335184221,1723946827141,-1565.15135738,0.00016603,7]
[335184222,1723946827163,-38.06845211,0.00018135,2]
[335184224,1723946838118,-116.88626369,0.00018135,2]
[335184225,1723946838142,-300.0,0.00018182,2]
[335184226,1723946838163,-142.08838877,0.00018183,2]
[335184227,1723946840105,-909.59348684,0.00018183,2]
[335184229,1723946842637,19498.4367866,0.00015001,2]
[335184230,1723946845139,-784.91171826,0.0001816,2]
[335184231,1723946845162,-381.9593541,0.0002,2]
[335184232,1723946845275,-420.0,0.0002,2]
[335184233,1723946845297,-158.879244,0.0002049,2]
[335184234,1723946845320,-158.879244,0.00020572,2]
[335184235,1723946845342,-38.66196453,0.00020654,2]
[335184239,1723946853100,-120.21727947,0.00020654,2]
[335184240,1723946853124,-207.360586,0.00020707,2]
[335184241,1723946853146,-158.879244,0.00020736,2]
[335184242,1723946853169,-158.879244,0.00020818,2]
[335184243,1723946853190,-34.8438096,0.000209,2]
[335184308,1723947042371,-250.0,0.00020281,2]
[335184310,1723947042380,-250.0,0.00020336,2]
[335184312,1723947042390,-250.0,0.00020392,2]
[335184313,1723947042399,-250.0,0.00020447,2]
[335184315,1723947042408,-250.0,0.00020503,2]
[335184317,1723947042419,-250.0,0.00020559,2]
[335184319,1723947042429,-250.0,0.00020614,2]
[335184321,1723947042439,-250.0,0.0002067,2]
[335184323,1723947042448,-250.0,0.00020726,2]
[335184325,1723947042458,-250.0,0.00020781,2]
[335184327,1723947042467,-250.0,0.00020837,2]
[335184329,1723947042476,-250.0,0.00020892,2]
[335184331,1723947042486,-300.0,0.00020899,2]
[335184333,1723947042496,-500.0,0.00020899,2]
[335184335,1723947042505,-500.0,0.00020899,2]
[335184336,1723947042514,-494.74940106,0.00020899,2]
[335184338,1723947042523,-500.0,0.00020899,2]
[335184340,1723947042532,-51382.16787184,0.000209,2]
[335184427,1723947043783,-24.87171713,0.000209,2]
[335184554,1723947149552,181.908436,0.00014247,2]
[335184560,1723947200668,19498.4367866,0.00014247,2]
[335184561,1723947223170,19498.4367866,0.00014247,2]
[335184563,1723947344557,16422.05006199,0.00014247,2]
[335184570,1723947621510,186.624527,0.00014247,2]
[335184579,1723947793225,154.69833824,0.00014519,2]
[335184581,1723947898211,154.69833824,0.00014519,2]
[335184615,1723948027142,-867.99993321,0.00017598,2]
[335184616,1723948027164,-50.71852128,0.00017598,2]
[335184617,1723948027341,-103.97981696,0.00017598,2]
[335184618,1723948027362,-412.1663067,0.000189,2]
[335184619,1723948027383,-2018.11681389,0.00019,2]
[335184620,1723948027406,-250.0,0.0001968,2]
[335184621,1723948027427,-165.965993,0.00019704,2]
[335184622,1723948027450,-250.0,0.00019734,2]
[335184623,1723948027472,-250.0,0.00019788,2]
[335184624,1723948027494,-250.0,0.00019842,2]
[335184625,1723948027619,-250.0,0.00019895,2]
[335184626,1723948027646,-250.0,0.00019949,2]
[335184627,1723948027667,-874.14309338,0.0002,2]
[335184628,1723948032102,-574.90027863,0.0002,2]
[335184638,1723948053103,-550.95662799,0.0002,2]
[335184639,1723948053128,-250.0,0.00020003,2]
[335184640,1723948053151,-115.38175502,0.00020057,2]
[335184642,1723948054094,-134.61824498,0.00020057,2]
[335184643,1723948054118,-250.0,0.00020111,2]
[335184644,1723948054142,-250.0,0.00020165,2]
[335184645,1723948054166,-250.0,0.00020219,2]
[335184646,1723948054188,-250.0,0.00020273,2]
[335184647,1723948054213,-250.0,0.00020327,2]
[335184648,1723948054237,-250.0,0.00020381,2]
[335184649,1723948054261,-200.23748076,0.00020435,2]
[335184650,1723948127115,181.908436,0.00014247,2]
[335184652,1723948135227,154.69833824,0.00014519,2]
[335184656,1723948165218,154.69833824,0.00014519,2]
[335184659,1723948208728,154.69833824,0.00017598,2]
[335184661,1723948225198,103.18037806,0.00017598,2]
[335184662,1723948225218,90.30166176,0.00017598,2]
[335185067,1723948238722,-162.6465813,0.00019178,2]
[335185068,1723948238732,-500.0,0.00019997,2]
[335185069,1723948238742,-184.31415493,0.00019997,2]
[335185070,1723948238755,-500.0,0.00019997,2]
[335185071,1723948238765,-190.69897841,0.00019997,2]
[335185072,1723948238775,-500.0,0.00019997,2]
[335185074,1723948238784,-500.0,0.00019997,2]
[335185076,1723948238794,-500.0,0.00019997,2]
[335185078,1723948238804,-426617.3261951,0.00019998,2]
[335185080,1723948238815,-6481.74734562,0.00019998,2]
[335185090,1723948238918,-8873.69504609,0.00019998,2]
[335185197,1723948241155,-54676.9172729,0.00019998,2]
[335185274,1723948361760,156.26769478,0.00014519,2]
[335185275,1723948373693,187.86974768,0.00014519,2]
[335185276,1723948405090,174.58103831,0.00014519,2]
[335185277,1723948412969,1928.80743156,0.00014519,2]
[335185278,1723948415234,154.69833824,0.00014519,2]
[335185279,1723948438047,219.13249124,0.00014519,2]
[335185280,1723948450188,5033.4240605,0.00014519,2]
[335185282,1723948507818,161.73974932,0.00014519,2]
[335185286,1723948602522,193.502974,0.00014247,2]
[335185287,1723948634434,172.88033096,0.00014519,2]
[335185295,1723948668101,1670.74719108,0.00014519,2]
[335185296,1723948697367,155.27716139,0.00014519,2]
[335185311,1723949121316,181.908436,0.00014247,2]
[335185314,1723949225142,-3969.19689767,0.00018474,2]
[335185316,1723949227119,-527.82480884,0.00018474,2]
[335185317,1723949227141,-319.407312,0.0001856,2]
[335185318,1723949227164,-71.68623889,0.00018573,2]
[335185319,1723949232306,-228.31376111,0.00018573,2]
[335185320,1723949232330,-1238.81721883,0.00018574,2]
[335185321,1723949235101,-313.91151072,0.00018574,2]
[335185327,1723949251100,-191.9731999,0.00018374,2]
[335185328,1723949251123,-1622.64229917,0.00018574,2]
[335185329,1723949254104,-629.21499101,0.00018574,2]
[335185389,1723949438032,-2209.381566,0.00018561,2]
[335185391,1723949438041,-486.31595418,0.00018928,2]
[335185393,1723949438051,-193.174243,0.00018972,2]
[335185395,1723949438060,-193.174243,0.00019024,2]
[335185397,1723949438070,-193.174243,0.00019076,2]
[335185399,1723949438079,-193.174243,0.00019128,2]
[335185401,1723949438088,-196.9187493,0.00019178,2]
[335185403,1723949438098,-251.0,0.00019178,2]
[335185405,1723949438107,-193.174243,0.0001918,2]
[335185407,1723949438116,-193.174243,0.00019232,2]
[335185409,1723949438126,-193.174243,0.00019284,2]
[335185411,1723949438136,-193.174243,0.00019337,2]
[335185413,1723949438147,-193.174243,0.00019389,2]
[335185415,1723949438157,-953.29878775,0.00019434,2]
[335185418,1723949438167,-193.174243,0.00019441,2]
[335185420,1723949438177,-193.174243,0.00019493,2]
[335185422,1723949438188,-193.174243,0.00019545,2]
[335185424,1723949438199,-193.174243,0.00019597,2]
[335185426,1723949438208,-193.174243,0.00019649,2]
[335185428,1723949438218,-193.174243,0.00019701,2]
[335185430,1723949438229,-193.174243,0.00019753,2]
[335185432,1723949438238,-193.174243,0.00019805,2]
[335185434,1723949438247,-193.174243,0.00019857,2]
[335185436,1723949438256,-300.0,0.00019899,2]
[335185438,1723949438266,-253.53750126,0.000199,2]
[335185440,1723949438275,-458.19026646,0.000199,2]
[335185442,1723949438286,-3559.841483,0.000199,2]
[335185444,1723949438295,-193.174243,0.00019909,2]
[335185446,1723949438304,-500.0,0.00019924,2]
[335185449,1723949438314,-193.174243,0.00019961,2]
[335185451,1723949438323,-621.7,0.0001999,3]
[335185453,1723949438333,-11000.5428026,0.0001999,2]
[335185455,1723949438342,-184.31415493,0.00019998,2]
[335185457,1723949438351,-500.0,0.00019998,2]
[335185459,1723949438360,-500.0,0.00019998,2]
[335185461,1723949438371,-500.0,0.00019998,2]
[335185463,1723949438382,-190.69897841,0.00019998,2]
[335185465,1723949438392,-500.0,0.00019998,2]
[335185476,1723949438492,-500.0,0.00019998,2]
[335185478,1723949438504,-401963.11422455,0.00019999,2]
[335185481,1723949438518,-22913.68168939,0.00019999,2]
[335185581,1723949440433,-165.981565,0.00019178,2]
[335185582,1723949440442,-23930.54894786,0.00019999,2]
[335185598,1723949443167,-53508.40614596,0.00019999,2]
[335185599,1723949443181,-9583.36051733,0.00019999,2]
[335185600,1723949443193,-39567.89450152,0.00019999,2]
[335185670,1723949495289,152.0,5.479e-05,2]
[335185671,1723949495437,93.0,0.00017333,2]
[335185672,1723949497918,152.0,5.479e-05,2]
[335185680,1723949571553,237.1844789,0.0001,2]
[335185681,1723949619618,199.697377,0.00014247,2]
[335185682,1723949659439,155.33095879,0.00012121,2]
[335185683,1723949661708,2287.18608415,0.00015001,2]
[335185685,1723949729156,3019.8763702,0.00014519,2]
[335185686,1723949764176,397.72664921,0.00015001,2]
[335185687,1723949775339,813.24361932,0.00014519,2]
[335185689,1723949796044,152.0,5.479e-05,2]
[335185690,1723949798427,152.0,5.479e-05,2]
[335185696,1723949850250,661.56969072,0.00015,2]
[335185700,1723950024366,809.95963071,0.00014519,2]
[335185701,1723950095426,152.0,5.479e-05,2]
[335185702,1723950097735,152.0,5.479e-05,2]
[335185708,1723950147646,181.908436,0.00014247,2]
[335185710,1723950176906,809.95963071,6.641e-05,2]
[335185717,1723950314152,1051.68187561,8.05e-05,2]
[335185718,1723950331206,784.91171826,0.00015,2]
[335185719,1723950356095,809.95963071,8.05e-05,2]
[335185720,1723950382964,2063.55306514,0.00014519,2]
[335185721,1723950395549,152.0,5.479e-05,2]
[335185722,1723950397957,152.0,5.479e-05,2]
[335185723,1723950406178,-218.20382928,0.00017233,2]
[335185724,1723950426114,-35.33367198,0.00017233,2]
[335185725,1723950426136,-152.0,0.00017333,2]
[335185726,1723950426157,-152.0,0.00017333,2]
[335185727,1723950426182,-1591.09025033,0.00018209,2]
[335185728,1723950434115,-618.29131567,0.00018209,2]
[335185729,1723950434139,-159.703656,0.00018236,2]
[335185730,1723950434254,-132.53100246,0.00018301,2]
[335185731,1723950440116,-353.78495172,0.00018301,2]
[335185732,1723950440139,-321.29869415,0.00018349,2]
[335185733,1723950450105,-737.99028521,0.00018349,2]
[335185736,1723950564091,-243.74282784,0.00018349,2]
[335185738,1723950571850,202.41032616,0.00016438,2]
[335185739,1723950571871,245.0,0.00016438,2]
[335185838,1723950638191,-736.58096916,0.00016438,2]
[335185840,1723950638201,-1565.15135738,0.00016603,7]
[335185841,1723950638212,-776.4315317,0.00018349,2]
[335185842,1723950638222,-250.0,0.00018367,2]
[335185843,1723950638231,-4933.19924336,0.00018371,2]
[335185844,1723950638241,-250.0,0.00018417,2]
[335185845,1723950638251,-250.0,0.00018468,2]
[335185846,1723950638262,-250.0,0.00018518,2]
[335185847,1723950638271,-250.0,0.00018568,2]
[335185848,1723950638379,-250.0,0.00018619,2]
[335185849,1723950638393,-300.0,0.00018668,2]
[335185850,1723950638402,-250.0,0.00018669,2]
[335185851,1723950638412,-4933.19924336,0.00018704,2]
[335185852,1723950638424,-250.0,0.0001872,2]
[335185853,1723950638436,-250.0,0.0001877,2]
[335185855,1723950638445,-250.0,0.0001882,2]
[335185857,1723950638454,-250.0,0.00018871,2]
[335185859,1723950638465,-250.0,0.00018921,2]
[335185861,1723950638474,-250.0,0.00018972,2]
[335185862,1723950638483,-1096.18,0.00019,2]
[335185863,1723950638492,-500.0,0.00019021,2]
[335185865,1723950638502,-500.0,0.00019021,2]
[335185867,1723950638511,-500.0,0.00019021,2]
[335185869,1723950638520,-494.00935304,0.00019021,2]
[335185870,1723950638529,-500.0,0.00019021,2]
[335185873,1723950638540,-500.0,0.00019021,2]
[335185874,1723950638550,-500.0,0.00019021,2]
[335185876,1723950638559,-500.0,0.00019021,2]
[335185879,1723950638568,-250.0,0.00019022,2]
[335185881,1723950638578,-4933.19924336,0.00019025,2]
[335185883,1723950638588,-250.0,0.00019072,2]
[335185885,1723950638597,-250.0,0.00019123,2]
[335185887,1723950638609,-250.0,0.00019173,2]
[335185889,1723950638620,-163.045308,0.00019178,2]
[335185891,1723950638630,-251.0,0.00019178,2]
[335185894,1723950638642,-166.281263,0.00019178,2]
[335185896,1723950638653,-250.0,0.00019223,2]
[335185898,1723950638665,-500.0,0.00019265,2]
[335185900,1723950638676,-250.0,0.00019274,2]
[335185903,1723950638687,-250.0,0.00019324,2]
[335185905,1723950638697,-4933.19924336,0.00019427,2]
[335185907,1723950638709,-4933.19924336,0.00019461,2]
[335185909,1723950638719,-500.0,0.00019595,2]
[335185911,1723950638728,-3901.31092266,0.00019632,2]
[335185913,1723950638739,-304.83,0.00019732,2]
[335185916,1723950638752,-166.9914272,0.00019898,2]
[335185918,1723950638762,-4023.94127984,0.000199,2]
[335185920,1723950638771,-698.16215721,0.00019903,2]
[335185922,1723950638783,-4933.19924338,0.00019933,2]
[335185924,1723950638792,-184.31415493,0.00019988,2]
[335185926,1723950638802,-304.32935456,0.00019988,2]
[335185928,1723950638811,-500.0,0.00019988,2]
[335185930,1723950638821,-500.0,0.00019988,2]
[335185932,1723950638830,-500.0,0.00019988,2]
[335185934,1723950638839,-500.0,0.00019988,2]
[335185936,1723950638849,-500.0,0.00019988,2]
[335185937,1723950638859,-500.0,0.00019988,2]
[335185939,1723950638869,-500.0,0.00019988,2]
[335185941,1723950638878,-500.0,0.00019988,2]
[335185942,1723950638888,-500.0,0.00019988,2]
[335185943,1723950638897,-451.16883166,0.00019988,2]
[335185944,1723950638906,-370309.41595792,0.00019989,2]
[335185961,1723950640609,-184793.65862912,0.00019989,2]
[335185975,1723950640823,-716038.1185001,0.00019989,2]
[335186000,1723950644534,-227.65497928,0.00019021,2]
[335186001,1723950644544,-250.0,0.00019988,2]
[335186002,1723950644555,-500.0,0.00019988,2]
[335186003,1723950644565,-1136.26163539,0.00019989,2]
[335186016,1723950646318,-26741.54021217,0.00019989,2]
[335186017,1723950670229,8000.0,0.00015001,2]
[335186019,1723950688559,6388.0,0.00015001,2]
[335186020,1723950693467,200.080538,0.00014247,2]
[335186021,1723950695500,152.0,5.479e-05,2]
[335186022,1723950697421,152.0,5.479e-05,2]
[335186030,1723950778125,206.63375418,6.641e-05,2]
[335186031,1723950829560,409.18793295,0.00014519,2]
[335186032,1723950997089,152.0,5.479e-05,2]
[335186035,1723951028181,3000.0,0.00015,2]
[335186039,1723951065923,324.73759861,6.641e-05,2]
[335186040,1723951108424,567.80966208,0.00015,2]
[335186043,1723951195559,4717.148,0.00015001,2]
[335186044,1723951275198,150.5,0.0001999,120]
[335186045,1723951275722,150.5,0.0001998,120]
[335186046,1723951276206,258.08,0.0001997,120]
[335186047,1723951296891,152.0,5.479e-05,2]
[335186052,1723951541585,867.99993321,6.641e-05,2]
[335186054,1723951596616,152.0,5.479e-05,2]
[335186056,1723951631146,-412.1663067,0.00015681,2]
[335186057,1723951631169,-172.75230865,0.00015781,2]
[335186058,1723951632124,-327.24769135,0.00015781,2]
[335186059,1723951632147,-500.0,0.00016611,2]
[335186060,1723951632169,-77.89794621,0.00017333,2]
[335186062,1723951640115,-74.10205379,0.00017333,2]
[335186063,1723951640139,-500.0,0.00017486,2]
[335186064,1723951640162,-341.65508833,0.00017724,2]
[335186065,1723951651092,-385.3478187,0.00017724,2]
[335186066,1723951651115,-159.7036575,0.00017944,2]
[335186067,1723951651138,-300.0,0.00018156,2]
[335186068,1723951651161,-999.36106919,0.00018157,2]
[335186070,1723951694823,210.631596,0.00014247,2]
[335186072,1723951743824,201.02618351,0.00014519,2]
[335186074,1723951768159,-180.5440135,0.000176,2]
[335186076,1723951788943,154.71377951,0.00014519,2]